bitfinex/quotes_BTCUSD_20251230
["timestamp","ask_amount","ask_price","bid_price","bid_amount"]
[1767089001830,0.0119133,88055.0,88045.0,0.51145829]
[1767089003902,0.0119133,88055.0,88035.0,0.0002]
[1767089004077,0.01135666,88054.0,88045.0,0.51145829]
[1767089004407,0.01135666,88054.0,88035.0,0.0002]
[1767089004408,0.01135692,88052.0,88040.0,0.51145829]
[1767089004610,0.01135692,88052.0,88035.0,0.0002]
[1767089004836,0.01135692,88052.0,88040.0,0.51145829]
[1767089005717,0.01135692,88052.0,88035.0,0.0002]
[1767089005893,0.01135692,88052.0,88040.0,0.51145829]
[1767089005894,0.01135718,88050.0,88040.0,0.51145829]
[1767089006113,0.02283731,88049.0,88040.0,0.51145829]
[1767089006303,0.02283731,88049.0,88035.0,0.0002]
[1767089006304,0.02283731,88049.0,88039.0,0.51145829]
[1767089006520,0.01148,88049.0,88039.0,0.51145829]
[1767089007079,0.01148,88049.0,88035.0,0.0002]
[1767089007326,0.01148,88049.0,88039.0,0.51145829]
[1767089010805,0.01135666,88054.0,88039.0,0.51145829]
[1767089010806,0.0119133,88055.0,88039.0,0.51145829]
[1767089010932,0.0119133,88055.0,88045.0,0.51145829]
[1767089010933,0.00055677,88055.0,88045.0,0.51145829]
[1767089011140,6.77e-06,88055.0,88045.0,0.51145829]
[1767089011351,6.77e-06,88055.0,88046.0,0.01135769]
[1767089011551,6.77e-06,88055.0,88045.0,0.51145829]
[1767089012827,6.77e-06,88055.0,88040.0,0.51145829]
[1767089012828,0.0227016,88053.0,88040.0,0.51145829]
[1767089013036,0.01135692,88052.0,88043.0,0.01148]
[1767089013242,0.03405839,88053.0,88043.0,0.01148]
[1767089013419,0.03405839,88053.0,88040.0,0.51145829]
[1767089013420,0.01135731,88049.0,88040.0,0.51145829]
[1767089013620,0.01135731,88049.0,88039.0,0.52293829]
[1767089013621,0.01135744,88048.0,88039.0,0.52293829]
[1767089013840,0.06814782,88044.0,88035.0,0.0002]
[1767089014180,0.01135808,88043.0,88035.0,0.0002]
[1767089014299,0.01135821,88042.0,88035.0,0.0002]
[1767089014504,0.01148,88052.0,88029.0,0.0115678]
[1767089014505,0.0113595,88032.0,88029.0,8.78e-05]
[1767089014744,0.05679817,88031.0,88029.0,8e-07]
[1767089015116,0.05679858,88031.0,88029.0,8e-07]
[1767089015319,0.0113595,88032.0,88029.0,8e-07]
[1767089015747,0.05679879,88031.0,88029.0,8e-07]
[1767089016864,0.06815766,88032.0,88029.0,8e-07]
[1767089017091,0.01148,88033.0,88029.0,8e-07]
[1767089021530,0.01135847,88040.0,88029.0,8e-07]
[1767089021731,0.01148,88039.0,88029.0,8e-07]
[1767089022734,0.0228386,88039.0,88029.0,8e-07]
[1767089023308,0.01148,88039.0,88029.0,8e-07]
[1767089024380,0.0228386,88039.0,88029.0,8e-07]
[1767089025702,0.01135873,88038.0,88029.0,8e-07]
[1767089025902,0.01135886,88037.0,88029.0,8e-07]
[1767089026125,0.01135873,88038.0,88029.0,8e-07]
[1767089026303,0.01135886,88037.0,88029.0,8e-07]
[1767089026482,0.01135873,88038.0,88029.0,8e-07]
[1767089026895,0.01135886,88037.0,88029.0,8e-07]
[1767089027098,0.01135898,88036.0,88029.0,8e-07]
[1767089027300,0.01135911,88035.0,88029.0,8e-07]
[1767089027575,0.01135898,88036.0,88029.0,8e-07]
[1767089028382,0.0228386,88039.0,88029.0,8e-07]
[1767089028504,0.01135873,88038.0,88029.0,8e-07]
[1767089028705,0.01135873,88038.0,88015.0,0.01064313]
[1767089028939,0.0002,88027.0,88018.0,0.01136131]
[1767089029153,0.0002,88027.0,88015.0,0.01064313]
[1767089029154,0.0002,88027.0,88017.0,0.01136144]
[1767089029508,0.01135873,88038.0,88017.0,0.01136144]
[1767089030137,0.01142351,88038.0,88017.0,0.01136144]
[1767089030541,6.478e-05,88038.0,88017.0,0.01136144]
[1767089031668,6.478e-05,88038.0,88015.0,0.01064313]
[1767089031669,0.01142351,88038.0,88015.0,0.01064313]
[1767089031968,0.01135886,88037.0,88016.0,0.01136157]
[1767089032170,0.01135886,88037.0,88015.0,0.01064313]
[1767089032346,0.01135898,88036.0,88015.0,0.01064313]
[1767089032551,0.01135886,88037.0,88015.0,0.01064313]
[1767089033112,0.01135886,88037.0,88016.0,0.01136157]
[1767089033313,0.01135886,88037.0,88015.0,0.01064313]
[1767089033875,0.01135886,88037.0,88016.0,0.01136157]
[1767089034083,0.01135886,88037.0,88015.0,0.01064313]
[1767089034084,0.01135898,88036.0,88015.0,0.01064313]
[1767089034250,0.01135898,88036.0,88015.0,0.01136169]
[1767089034457,0.01135886,88037.0,88015.0,0.01136169]
[1767089034651,0.06815349,88037.0,88013.0,0.01136195]
[1767089034876,0.06815349,88037.0,88008.0,0.05681249]
[1767089034877,0.01135976,88030.0,88014.0,0.01148]
[1767089035026,0.01135963,88031.0,88014.0,0.01148]
[1767089035461,0.01135963,88031.0,88012.0,0.16125]
[1767089035864,0.07963757,88032.0,88012.0,0.16125]
[1767089036066,0.01135963,88031.0,88012.0,0.16125]
[1767089037025,0.01135976,88030.0,88012.0,0.16125]
[1767089037322,0.01135963,88031.0,88012.0,0.16125]
[1767089039326,0.01135976,88030.0,88012.0,0.16125]
[1767089039927,0.01135989,88029.0,88012.0,0.16125]
[1767089040374,0.01136002,88028.0,88012.0,0.16125]
[1767089040800,0.01135976,88030.0,88012.0,0.01148]
[1767089041380,0.01148,88032.0,88012.0,0.01148]
[1767089041611,0.0228395,88032.0,88020.0,0.51172655]
[1767089041798,0.01148,88032.0,88020.0,0.51172655]
[1767089044844,6.478e-05,88038.0,88022.0,0.65218655]
[1767089045048,6.478e-05,88038.0,88028.0,0.51172655]
[1767089049740,6.478e-05,88038.0,88022.0,0.14046]
[1767089049947,0.01142351,88038.0,88022.0,0.14046]
[1767089050142,0.01135886,88037.0,88022.0,0.14046]
[1767089050568,0.01142351,88038.0,88023.0,0.01148]
[1767089051493,0.01135898,88036.0,88023.0,0.01148]
[1767089051697,6.478e-05,88038.0,88010.0,0.65218655]
[1767089051896,6.478e-05,88038.0,88011.0,0.01148]
[1767089051897,0.0113595,88032.0,88011.0,0.01148]
[1767089052121,0.01135924,88034.0,88011.0,0.02284221]
[1767089052122,0.06815586,88034.0,88011.0,0.02284221]
[1767089052253,0.01135937,88033.0,88011.0,0.02284221]
[1767089052674,0.01135937,88033.0,88012.0,0.01136208]
[1767089052908,0.06815586,88034.0,88012.0,0.01136208]
[1767089053106,0.01135924,88034.0,88020.0,0.51172655]
[1767089053269,0.01135924,88034.0,88021.0,0.01148]
[1767089053470,0.01135911,88035.0,88021.0,0.01148]
[1767089054475,0.01135924,88034.0,88021.0,0.01148]
[1767089054854,0.0113595,88032.0,88021.0,0.01148]
[1767089055051,0.01135898,88036.0,88021.0,0.01148]
[1767089055052,0.01135989,88029.0,88021.0,0.01144]
[1767089055277,0.01136002,88028.0,88021.0,0.01089]
[1767089055579,0.01136027,88026.0,88021.0,0.01089]
[1767089055798,0.01136015,88027.0,88021.0,0.01089]
[1767089056201,0.01135989,88029.0,88021.0,0.01089]
[1767089056619,0.01135963,88031.0,88021.0,0.01089]
[1767089056832,0.01135924,88034.0,88021.0,0.01089]
[1767089057128,0.06827491,88037.0,88024.0,0.51172655]
[1767089057334,0.01135911,88035.0,88024.0,0.51172655]
[1767089057509,0.01135898,88036.0,88021.0,0.01089]
[1767089057895,0.01135911,88035.0,88021.0,0.01089]
[1767089058516,0.01135898,88036.0,88021.0,0.01089]
[1767089062430,0.01135911,88035.0,88021.0,0.01089]
[1767089062786,0.01135924,88034.0,88021.0,0.01089]
[1767089062973,0.06815578,88034.0,88021.0,0.01089]
[1767089063136,0.01135924,88034.0,88021.0,0.01089]
[1767089063558,0.0113595,88032.0,88021.0,0.01089]
[1767089063735,0.01135937,88033.0,88021.0,0.01089]
[1767089064522,0.0113595,88032.0,88021.0,0.01089]
[1767089065270,0.01135937,88033.0,88021.0,0.01089]
[1767089065678,0.0113595,88032.0,88021.0,0.01089]
[1767089066086,0.01135937,88033.0,88021.0,0.01089]
[1767089066292,0.0113595,88032.0,88021.0,0.01089]
[1767089066501,0.01135937,88033.0,88021.0,0.01089]
[1767089069360,0.01135924,88034.0,88021.0,0.01089]
[1767089070397,0.01135937,88033.0,88021.0,0.01089]
[1767089070734,0.01135963,88031.0,88021.0,0.01089]
[1767089070957,0.01135989,88029.0,88021.0,0.01089]
[1767089071361,0.01135976,88030.0,88021.0,0.01089]
[1767089071718,0.01135989,88029.0,88021.0,0.01089]
[1767089072673,0.06815829,88031.0,88021.0,0.01089]
[1767089072674,0.01135963,88031.0,88021.0,0.01089]
[1767089073327,0.22718154,88036.0,88021.0,0.01089]
[1767089073328,0.06815425,88036.0,88021.0,0.01089]
[1767089073483,0.01135898,88036.0,88021.0,0.01089]
[1767089073890,0.01135911,88035.0,88021.0,0.01089]
[1767089074096,0.01135924,88034.0,88021.0,0.01089]
[1767089074514,0.01135911,88035.0,88021.0,0.01089]
[1767089074835,0.01135898,88036.0,88021.0,0.01089]
[1767089075143,0.01135911,88035.0,88021.0,0.01089]
[1767089075499,0.01135937,88033.0,88021.0,0.01089]
[1767089076519,0.01136002,88028.0,88021.0,0.01089]
[1767089076693,0.01135963,88031.0,88021.0,0.01089]
[1767089076900,0.01136002,88028.0,88021.0,0.01089]
[1767089077099,0.05679989,88029.0,88021.0,0.01089]
[1767089077100,0.01135989,88029.0,88021.0,0.01089]
[1767089077299,0.01135976,88030.0,88021.0,0.01089]
[1767089077526,0.01136002,88028.0,88021.0,0.01089]
[1767089077744,0.01135976,88030.0,88021.0,0.01089]
[1767089077745,0.06815917,88030.0,88021.0,0.01089]
[1767089078044,0.01135989,88029.0,88021.0,0.01089]
[1767089079333,0.06815917,88030.0,88021.0,0.01089]
[1767089080013,0.01135989,88029.0,88021.0,0.01089]
[1767089080214,0.06815917,88030.0,88021.0,0.01089]
[1767089080215,0.01135976,88030.0,88021.0,0.01089]
[1767089080417,0.01135989,88029.0,88021.0,0.01089]
[1767089080835,0.01135976,88030.0,88021.0,0.01089]
[1767089081186,0.01135989,88029.0,88021.0,0.01089]
[1767089081315,0.01135976,88030.0,88021.0,0.01089]
[1767089082036,0.01135989,88029.0,88021.0,0.01089]
[1767089082693,0.01135976,88030.0,88021.0,0.01089]
[1767089082853,0.01135989,88029.0,88021.0,0.01089]
[1767089083253,0.01135976,88030.0,88021.0,0.01089]
[1767089083451,0.06815905,88030.0,88021.0,0.01089]
[1767089083650,0.01136002,88028.0,88021.0,0.01089]
[1767089084056,0.01136015,88027.0,88021.0,0.01089]
[1767089084256,0.01136002,88028.0,88021.0,0.01089]
[1767089084677,0.01136015,88027.0,88021.0,0.01089]
[1767089084922,0.01136027,88026.0,88021.0,0.01089]
[1767089085441,0.01136015,88027.0,88021.0,0.01089]
[1767089085678,0.01136015,88027.0,88014.0,0.00574167]
[1767089085841,0.01136027,88026.0,88014.0,0.00574167]
[1767089086056,0.01136015,88027.0,88014.0,0.00574167]
[1767089086365,0.01136002,88028.0,88014.0,0.00574167]
[1767089086572,0.01136015,88027.0,88018.0,0.51171219]
[1767089086956,0.01136027,88026.0,88018.0,0.51171219]
[1767089087152,0.01136002,88028.0,88016.0,0.51171219]
[1767089087474,0.01136027,88026.0,88018.0,0.51171219]
[1767089087670,0.01136015,88027.0,88016.0,0.51171219]
[1767089087891,0.01136027,88026.0,88016.0,0.51171219]
[1767089088257,0.0113604,88025.0,88016.0,0.51171219]
[1767089088458,0.01136027,88026.0,88016.0,0.51171219]
[1767089088755,0.01136053,88024.0,88016.0,0.51171219]
[1767089088980,0.0113604,88025.0,88016.0,0.51171219]
[1767089089389,0.14171618,88082.0,88012.0,0.000223]
[1767089089390,0.01136131,88018.0,88012.0,0.000223]
[1767089089606,0.01136144,88017.0,88012.0,0.000223]
[1767089089808,0.01136157,88016.0,88012.0,0.000223]
[1767089090148,0.01136169,88015.0,88012.0,0.000223]
[1767089090683,0.06817074,88015.0,88012.0,0.000223]
[1767089090881,0.01136092,88021.0,88015.0,0.000549]
[1767089091082,0.0681667,88020.0,88015.0,0.000549]
[1767089091325,0.01136105,88020.0,88012.0,0.000223]
[1767089091487,0.01136144,88017.0,88012.0,0.000223]
[1767089091917,0.06816671,88020.0,88017.0,0.000549]
[1767089092482,0.0227016,88019.0,88012.0,0.000223]
[1767089093122,0.03406278,88019.0,88012.0,0.000223]
[1767089093485,0.0227016,88019.0,88012.0,0.000223]
[1767089094059,0.03406278,88019.0,88012.0,0.000223]
[1767089094441,0.0227016,88019.0,88012.0,0.000223]
[1767089094745,0.03406278,88019.0,88012.0,0.000223]
[1767089095039,0.0227016,88019.0,88012.0,0.000223]
[1767089095960,0.03406278,88019.0,88012.0,0.000223]
[1767089096173,0.0227016,88019.0,88012.0,0.000223]
[1767089096579,0.01136131,88018.0,88012.0,0.000223]
[1767089096788,0.05680718,88018.0,88012.0,0.000223]
[1767089096994,0.01136169,88015.0,88012.0,0.000223]
[1767089097196,0.01136157,88016.0,88012.0,0.00018163]
[1767089097535,0.01136169,88015.0,88012.0,0.00018163]
[1767089097746,0.01136157,88016.0,88007.0,0.0002]
[1767089097981,0.06817467,88010.0,88007.0,0.0002]
[1767089098466,0.0568127,88009.0,88007.0,0.0002]
[1767089098669,0.01136273,88007.0,88004.0,0.0004]
[1767089098833,0.06817851,88005.0,87997.0,0.0004]
[1767089099033,0.01136363,88000.0,87997.0,0.0004]
[1767089099233,0.01136324,88003.0,87997.0,0.00050723]
[1767089099234,0.0113635,88001.0,87997.0,0.00050723]
[1767089099659,0.0113635,88001.0,88000.0,0.0004456]
[1767089099887,0.05681689,88002.0,88000.0,0.0004456]
[1767089100455,0.01136324,88003.0,88000.0,0.0004456]
[1767089101722,0.03061484,88025.0,88003.0,0.000549]
[1767089101723,0.01136286,88006.0,88003.0,0.000549]
[1767089102112,0.01136286,88006.0,88000.0,0.0004456]
[1767089102113,0.01136299,88005.0,88000.0,0.0004456]
[1767089102865,0.01136324,88003.0,88000.0,0.0004456]
[1767089103043,0.01136299,88005.0,88003.0,0.000549]
[1767089103261,0.01136311,88004.0,88000.0,0.0004456]
[1767089103458,0.01136299,88005.0,88004.0,0.00055]
[1767089103928,0.01136311,88004.0,88000.0,0.0004456]
[1767089105122,0.01136286,88006.0,88000.0,0.0004456]
[1767089105331,0.51171219,88020.0,88000.0,0.0004456]
[1767089105332,0.0001789,88028.0,88006.0,0.00055]
[1767089105676,0.01144,88027.0,88018.0,0.51171219]
[1767089105898,0.01144,88026.0,88018.0,0.51171219]
[1767089106046,0.01144,88026.0,88016.0,0.51171219]
[1767089106431,0.0113604,88025.0,88016.0,0.51171219]
[1767089106725,0.02280027,88026.0,88016.0,0.51171219]
[1767089107132,0.01144,88026.0,88016.0,0.51171219]
[1767089107343,0.01089,88026.0,88016.0,0.51171219]
[1767089108609,0.01089,88026.0,88006.0,0.15998286]
[1767089108810,0.01089,88026.0,88016.0,0.51171219]
[1767089112339,0.0001789,88028.0,88016.0,0.51171219]
[1767089112517,0.01144,88025.0,88018.0,0.51171219]
[1767089112718,0.01144,88025.0,88016.0,0.14862]
[1767089113443,0.00688599,88025.0,88016.0,0.14862]
[1767089113601,0.0001789,88028.0,88016.0,0.14862]
[1767089113800,0.01144,88026.0,88016.0,0.14862]
[1767089114697,0.01144,88026.0,88015.0,0.51171219]
[1767089114920,0.01144,88026.0,88015.0,0.66033219]
[1767089115121,0.01144,88026.0,88015.0,0.67169388]
[1767089115721,0.0001789,88028.0,88015.0,0.67169388]
[1767089115929,0.01144,88027.0,88018.0,0.51171219]
[1767089119341,0.01144,88027.0,88017.0,0.51171219]
[1767089119495,0.01144,88027.0,88017.0,0.52307363]
[1767089119690,0.01144,88027.0,88017.0,0.67010363]
[1767089119858,0.0001789,88028.0,88017.0,0.67010363]
[1767089120925,0.0001789,88028.0,88017.0,0.65874219]
[1767089123090,0.0001789,88028.0,88017.0,0.67010363]
[1767089123334,0.0001789,88028.0,88017.0,0.65874219]
[1767089123637,0.0001789,88028.0,88017.0,0.67010363]
[1767089123818,0.0001789,88028.0,88017.0,0.65874219]
[1767089124868,0.000549,88017.0,88004.0,0.14703]
[1767089125202,0.06816371,88024.0,88007.0,0.51171219]
[1767089125203,0.01136066,88023.0,88007.0,0.51171219]
[1767089125385,0.01136066,88023.0,88004.0,0.15847]
[1767089125386,0.01136079,88022.0,88010.0,0.51171219]
[1767089125582,0.01136066,88023.0,88020.0,0.00031283]
[1767089125822,0.0113604,88025.0,88010.0,0.51171219]
[1767089126239,0.01136027,88026.0,88010.0,0.51171219]
[1767089126757,0.01136027,88026.0,88016.0,0.51171219]
[1767089128140,0.000237,88016.0,88004.0,0.16983311]
[1767089128324,0.000237,88016.0,88006.0,0.51171219]
[1767089128506,0.01144,88019.0,88006.0,0.51171219]
[1767089128709,0.01144,88019.0,88009.0,0.51171219]
[1767089130195,0.01144,88019.0,88004.0,0.16983311]
[1767089130398,0.0116259,88019.0,88009.0,0.51171219]
[1767089130723,0.01152527,88026.0,88019.0,0.0001261]
[1767089130724,0.000165,88026.0,88019.0,0.0001261]
[1767089131064,0.000165,88026.0,88016.0,0.51171219]
[1767089131461,0.000165,88026.0,88011.0,0.01144]
[1767089131462,0.000165,88026.0,88011.0,0.02280221]
[1767089131659,0.000165,88026.0,88016.0,0.51171219]
[1767089137820,0.000423,88016.0,88012.0,0.14703]
[1767089137977,0.000423,88016.0,88006.0,0.06817711]
[1767089137978,0.000423,88016.0,87997.0,0.01187125]
[1767089138181,0.01136092,88021.0,88001.0,0.15847]
[1767089138386,0.01144,88020.0,88016.0,0.000423]
[1767089138646,0.01144,88020.0,88010.0,0.51171219]
[1767089142074,0.02280105,88020.0,88010.0,0.51171219]
[1767089142828,0.01144,88020.0,88010.0,0.51171219]
[1767089144677,0.02280105,88020.0,88010.0,0.51171219]
[1767089145559,0.01144,88020.0,88010.0,0.51171219]
[1767089146587,0.01144,88020.0,88010.0,0.5117827]
[1767089156927,0.011605,88026.0,88020.0,0.000549]
[1767089157211,0.01144,88025.0,88020.0,0.000549]
[1767089157351,0.01144,88025.0,88016.0,0.5117827]
[1767089158551,0.01144,88025.0,88011.0,0.01136221]
[1767089158751,0.01144,88025.0,88012.0,0.01136208]
[1767089158951,0.01144,88025.0,88013.0,0.01136195]
[1767089159170,0.01144,88025.0,88012.0,0.01136208]
[1767089160197,0.01144,88025.0,88015.0,0.5117827]
[1767089160600,0.01144,88025.0,88011.0,0.01136221]
[1767089161584,0.01144,88025.0,88012.0,0.01136208]
[1767089161770,0.01144,88025.0,88011.0,0.01136221]
[1767089162175,0.01144,88025.0,88014.0,0.01136182]
[1767089162349,0.01144,88025.0,88013.0,0.01136195]
[1767089162557,0.000165,88026.0,88015.0,1.02355075]
[1767089162751,0.000165,88026.0,88025.0,0.000549]
[1767089162998,0.000165,88026.0,88018.0,0.01136131]
[1767089163173,0.000165,88026.0,88019.0,0.14949118]
[1767089163373,5e-06,88026.0,88021.0,0.01136092]
[1767089163575,5e-06,88026.0,88021.0,0.13813]
[1767089163987,0.00010224,88026.0,88021.0,0.13813]
[1767089164396,2.4e-07,88026.0,88021.0,0.13813]
[1767089166390,0.000165,88036.0,88021.0,0.13813]
[1767089166597,0.00052215,88036.0,88021.0,0.13813]
[1767089170839,0.01135911,88035.0,88016.0,0.01144]
[1767089171052,0.01135911,88035.0,88020.0,0.5117827]
[1767089171475,0.01188113,88036.0,88020.0,0.5117827]
[1767089171679,0.01135911,88035.0,88020.0,0.5117827]
[1767089172153,0.01135911,88035.0,88016.0,0.01144]
[1767089172337,0.01188113,88036.0,88020.0,0.5117827]
[1767089172750,0.0686765,88036.0,88020.0,0.5117827]
[1767089172930,0.0686765,88036.0,88011.0,0.13813]
[1767089172931,0.00055,88020.0,88011.0,0.13813]
[1767089173136,0.00055,88020.0,88012.0,0.01144]
[1767089173356,0.01135989,88029.0,88012.0,0.01144]
[1767089173701,0.01136002,88028.0,88012.0,0.01144]
[1767089173890,0.01135989,88029.0,88012.0,0.01144]
[1767089174386,0.01135976,88030.0,88013.0,0.01144]
[1767089174739,0.01135989,88029.0,88013.0,0.01144]
[1767089174948,0.01135976,88030.0,88013.0,0.01144]
[1767089176756,0.01135963,88031.0,88013.0,0.01144]
[1767089176961,0.01135976,88030.0,88013.0,0.01144]
[1767089177165,0.01135963,88031.0,88013.0,0.01144]
[1767089177372,0.0113595,88032.0,88013.0,0.01144]
[1767089177758,0.01135976,88030.0,88013.0,0.01144]
[1767089178516,0.01135989,88029.0,88013.0,0.01144]
[1767089178949,0.01135976,88030.0,88013.0,0.01144]
[1767089179597,0.01135976,88030.0,88011.0,0.13813]
[1767089179776,0.01135989,88029.0,88014.0,0.01144]
[1767089180159,0.01135963,88031.0,88002.0,0.000165]
[1767089180160,0.01136066,88023.0,88002.0,0.000165]
[1767089180374,0.01136015,88027.0,88010.0,0.5117827]
[1767089180375,0.0113604,88025.0,88010.0,0.5117827]
[1767089180569,0.01136053,88024.0,88011.0,0.01144]
[1767089180770,0.01136015,88027.0,88011.0,0.01144]
[1767089181206,0.06816057,88028.0,88011.0,0.01144]
[1767089181355,0.0113604,88025.0,88011.0,0.01144]
[1767089181554,0.01136015,88027.0,88011.0,0.01144]
[1767089181766,0.2271972,88030.0,88011.0,0.01144]
[1767089181977,0.01136066,88023.0,88011.0,0.01144]
[1767089182238,0.2271972,88030.0,88002.0,0.000165]
[1767089182239,0.00055,88011.0,88002.0,0.000165]
[1767089182428,0.01136118,88019.0,88006.0,0.01144]
[1767089182638,0.01136131,88018.0,88006.0,0.01144]
[1767089183006,0.01136118,88019.0,88011.0,0.00042298]
[1767089183216,0.01136079,88022.0,88011.0,9.8e-07]
[1767089183395,0.01136105,88020.0,88011.0,9.8e-07]
[1767089183801,0.01136118,88019.0,88011.0,9.8e-07]
[1767089184056,0.01136105,88020.0,88011.0,9.8e-07]
[1767089184360,0.01136118,88019.0,88011.0,9.8e-07]
[1767089184519,0.01136105,88020.0,88011.0,9.8e-07]
[1767089184870,0.01136131,88018.0,88011.0,9.8e-07]
[1767089185219,0.01136118,88019.0,88011.0,9.8e-07]
[1767089185606,0.01136131,88018.0,88011.0,9.8e-07]
[1767089186541,0.01136105,88020.0,88011.0,9.8e-07]
[1767089187276,0.01136118,88019.0,88011.0,9.8e-07]
[1767089189483,0.01136131,88018.0,88011.0,9.8e-07]
[1767089190203,0.01136105,88020.0,88011.0,9.8e-07]
[1767089190822,0.01136118,88019.0,88011.0,9.8e-07]
[1767089191202,0.01136105,88020.0,88011.0,9.8e-07]
[1767089191404,0.01136118,88019.0,88011.0,9.8e-07]
[1767089192186,0.01136131,88018.0,88011.0,9.8e-07]
[1767089192391,0.01136118,88019.0,88011.0,9.8e-07]
[1767089193029,0.01136131,88018.0,88011.0,9.8e-07]
[1767089194008,0.06816674,88020.0,88011.0,9.8e-07]
[1767089194234,0.01136131,88018.0,88011.0,9.8e-07]
[1767089194511,0.01136118,88019.0,88011.0,9.8e-07]
[1767089194927,0.06816674,88020.0,88011.0,9.8e-07]
[1767089195125,0.01136118,88019.0,88011.0,9.8e-07]
[1767089195339,0.01136105,88020.0,88011.0,9.8e-07]
[1767089195647,0.01136118,88019.0,88011.0,9.8e-07]
[1767089195970,0.01136105,88020.0,88011.0,9.8e-07]
[1767089196538,0.01136118,88019.0,88011.0,9.8e-07]
[1767089197179,0.01136131,88018.0,88011.0,9.8e-07]
[1767089197669,0.01136118,88019.0,88011.0,9.8e-07]
[1767089197903,0.0001473,88073.0,88019.0,0.146241]
[1767089197904,0.01171613,88036.0,88019.0,0.146241]
[1767089198021,0.01171613,88036.0,88020.0,0.5117827]
[1767089198022,0.01144,88033.0,88020.0,0.5117827]
[1767089199683,0.01144,88033.0,88019.0,0.14527]
[1767089199981,0.01144,88033.0,88020.0,0.5117827]
[1767089206633,0.01144,88033.0,88020.0,0.51164857]
[1767089207739,0.02279937,88033.0,88020.0,0.51164857]
[1767089207939,0.52300833,88030.0,88010.0,0.51164857]
[1767089208137,0.52300833,88030.0,88011.0,0.01144]
[1767089208138,0.57980779,88030.0,88011.0,0.01144]
[1767089208304,0.01136002,88028.0,88011.0,0.01144]
[1767089209608,0.0113604,88025.0,88011.0,0.01144]
[1767089210035,0.01136053,88024.0,88011.0,0.01144]
[1767089210618,0.0113604,88025.0,88010.0,0.51164857]
[1767089210820,0.0113604,88025.0,88012.0,0.01144]
[1767089211021,0.01136092,88021.0,88008.0,0.14693]
[1767089211235,0.07960443,88023.0,88008.0,0.01144]
[1767089211403,0.01136079,88022.0,88008.0,0.01144]
[1767089211639,0.01136092,88021.0,88008.0,0.01144]
[1767089212064,0.01136079,88022.0,88008.0,0.01144]
[1767089212243,0.01136079,88022.0,88010.0,0.51164857]
[1767089212457,0.01136079,88022.0,88008.0,0.01144]
[1767089212660,0.01136079,88022.0,88010.0,0.51164857]
[1767089212859,0.01136092,88021.0,88008.0,0.01144]
[1767089213058,0.01136157,88016.0,88007.0,0.0001287]
[1767089213239,0.01136144,88017.0,88007.0,0.0001287]
[1767089213580,0.01136118,88019.0,88007.0,0.0001287]
[1767089213737,0.01136131,88018.0,88007.0,0.0001287]
[1767089213926,0.01136118,88019.0,88007.0,0.0001287]
[1767089214128,0.01136131,88018.0,88007.0,0.0001287]
[1767089214401,0.01136118,88019.0,88007.0,0.0001287]
[1767089214736,0.06816754,88019.0,88007.0,0.0001287]
[1767089214936,0.01136144,88017.0,88007.0,0.0001287]
[1767089215645,0.01136157,88016.0,88007.0,0.0001287]
[1767089215841,0.01136131,88018.0,88007.0,0.0001287]
[1767089217376,0.06816761,88019.0,88007.0,0.0001287]
[1767089217691,0.01136118,88019.0,88007.0,0.0001287]
[1767089219516,0.01136131,88018.0,88007.0,0.0001287]
[1767089219714,0.01136144,88017.0,88007.0,0.0001287]
[1767089219867,0.01136118,88019.0,88007.0,0.0001287]
[1767089220067,0.06816722,88019.0,88007.0,0.0001287]
[1767089220320,0.01136144,88017.0,88007.0,0.0001287]
[1767089220515,0.01136131,88018.0,88007.0,0.0001287]
[1767089221865,0.01136118,88019.0,88007.0,0.0001287]
[1767089222669,0.52300962,88020.0,88007.0,0.0001287]
[1767089222871,0.01136118,88019.0,88007.0,0.0001287]
[1767089223321,0.01136144,88017.0,88007.0,0.0001287]
[1767089223518,0.01136118,88019.0,88007.0,0.0001287]
[1767089224027,0.01136131,88018.0,88007.0,0.0001287]
[1767089224410,0.01136118,88019.0,88007.0,0.0001287]
[1767089224796,0.01136131,88018.0,88007.0,0.0001287]
[1767089225607,0.01136144,88017.0,88007.0,0.0001287]
[1767089226265,0.01136131,88018.0,88007.0,0.0001287]
[1767089227366,0.01136118,88019.0,88007.0,0.0001287]
[1767089227711,0.01136131,88018.0,88007.0,0.0001287]
[1767089227960,0.01136118,88019.0,88007.0,0.0001287]
[1767089228372,0.01136131,88018.0,88007.0,0.0001287]
[1767089228679,0.57981542,88020.0,88007.0,0.0001287]
[1767089229588,0.52300962,88020.0,88007.0,0.0001287]
[1767089230170,0.01136118,88019.0,88007.0,0.0001287]
[1767089230389,0.06824366,88023.0,88007.0,0.0001287]
[1767089230574,0.52300962,88020.0,88007.0,0.0001287]
[1767089231307,0.01136118,88019.0,88007.0,0.0001287]
[1767089231723,0.01136144,88017.0,88007.0,0.0001287]
[1767089232342,0.01136131,88018.0,88007.0,0.0001287]
[1767089232632,0.01136118,88019.0,88007.0,0.0001287]
[1767089233016,0.01136144,88017.0,88007.0,0.0001287]
[1767089233216,0.01136131,88018.0,88007.0,0.0001287]
[1767089233752,0.01136144,88017.0,88007.0,0.0001287]
[1767089234098,0.57981537,88020.0,88007.0,0.0001287]
[1767089234099,0.01136105,88020.0,88007.0,0.0001287]
[1767089234303,0.01136105,88020.0,88010.0,0.51164857]
[1767089234510,0.01136092,88021.0,88010.0,0.51164857]
[1767089234707,0.01136079,88022.0,88010.0,0.51164857]
[1767089234955,0.01136092,88021.0,88010.0,0.51164857]
[1767089235303,0.06824375,88023.0,88010.0,0.51164857]
[1767089235304,0.02280066,88023.0,88010.0,0.51164857]
[1767089235715,0.01136079,88022.0,88010.0,0.51164857]
[1767089235912,0.02280066,88023.0,88010.0,0.51164857]
[1767089237402,0.01136079,88022.0,88010.0,0.51164857]
[1767089237760,0.02280066,88023.0,88010.0,0.51164857]
[1767089239250,0.011019,88023.0,88010.0,0.51164857]
[1767089239606,0.011019,88023.0,88008.0,0.0113626]
[1767089239803,0.011019,88023.0,88010.0,0.51164857]
[1767089240427,0.011019,88023.0,88011.0,0.14101]
[1767089242369,0.06816067,88028.0,88011.0,0.14101]
[1767089242370,0.51164857,88030.0,88011.0,0.14101]
[1767089242517,0.01144,88026.0,88011.0,0.14101]
[1767089244508,0.01144,88026.0,88012.0,0.01136208]
[1767089245127,0.01144,88026.0,88011.0,0.14101]
[1767089245322,0.01144,88026.0,88011.0,0.15237221]
[1767089245752,0.01144,88026.0,88012.0,0.01136208]
[1767089246388,0.01144,88026.0,88011.0,0.15237221]
[1767089246866,0.01144,88026.0,88012.0,0.01136208]
[1767089247439,0.01144,88026.0,88013.0,0.01136195]
[1767089247642,0.01144,88026.0,88012.0,0.01136208]
[1767089250062,0.01144,88026.0,88011.0,0.15237221]